fUSD/lending_fUSD_20240301
["ID","MTS","AMOUNT","RATE_DAILY","PERIOD"]
[316023540,1709327456951,-2046.85,0.00022136,2]
[316023541,1709327456960,-748.33,0.00022136,2]
[316023542,1709327456970,-500.0,0.00022136,2]
[316023543,1709327456979,-500.0,0.00022136,2]
[316023544,1709327456988,-963.9,0.00022136,2]
[316023545,1709327456998,-817.49,0.00022136,2]
[316023546,1709327457007,-500.0,0.00022136,2]
[316023547,1709327457016,-1750.36,0.00022136,2]
[316023548,1709327457025,-500.0,0.00022136,2]
[316023549,1709327457035,-2795.7,0.00022136,2]
[316023550,1709327457044,-544.42,0.00022136,2]
[316023551,1709327457054,-500.0,0.00022136,2]
[316023552,1709327457064,-500.0,0.00022136,2]
[316023553,1709327457073,-1462.57,0.00022136,2]
[316023554,1709327457082,-500.0,0.00022136,2]
[316023555,1709327457091,-500.0,0.00022136,2]
[316023556,1709327457100,-500.0,0.00022136,2]
[316023557,1709327457110,-581.14,0.00022136,2]
[316023558,1709327457119,-500.0,0.00022136,2]
[316023559,1709327457128,-963.96,0.00022136,2]
[316023560,1709327457137,-2872.28,0.00022136,2]
[316023561,1709327457146,-1433.79,0.00022136,2]
[316023562,1709327457155,-500.0,0.00022136,2]
[316023563,1709327457165,-500.0,0.00022136,2]
[316023564,1709327457174,-500.0,0.00022136,2]
[316023565,1709327457183,-668.73,0.00022136,2]
[316023566,1709327457192,-564.73,0.00022136,2]
[316023567,1709327457201,-2954.46,0.00022136,2]
[316023568,1709327457211,-500.0,0.00022136,2]
[316023569,1709327457220,-854.05,0.00022136,2]
[316023570,1709327457229,-205.83759997,0.00022136,2]
[316023571,1709327457238,-500.0,0.00022136,2]
[316023572,1709327457247,-680.92,0.00022136,2]
[316023573,1709327457257,-500.0,0.00022136,2]
[316023574,1709327457266,-500.0,0.00022136,2]
[316023575,1709327457275,-500.0,0.00022136,2]
[316023576,1709327457284,-500.0,0.00022136,2]
[316023577,1709327457293,-500.0,0.00022136,2]
[316023578,1709327457302,-587.0,0.00022136,2]
[316023579,1709327457312,-500.0,0.00022136,2]
[316023580,1709327457322,-500.0,0.00022136,2]
[316023581,1709327457331,-1483.22,0.00022136,2]
[316023582,1709327457340,-500.0,0.00022136,2]
[316023583,1709327457350,-3296.84,0.00022136,2]
[316023584,1709327457359,-1166.7,0.00022136,2]
[316023585,1709327457368,-992.09,0.00022136,2]
[316023586,1709327457378,-500.0,0.00022136,2]
[316023587,1709327457387,-500.0,0.00022136,2]
[316023588,1709327457397,-500.0,0.00022136,2]
[316023589,1709327457407,-1520.97,0.00022136,2]
[316023590,1709327457416,-649.61,0.00022136,2]
[316023591,1709327457425,-1316.59,0.00022136,2]
[316023592,1709327457435,-514.0,0.00022136,2]
[316023593,1709327457444,-718.57,0.00022136,2]
[316023594,1709327457454,-1959.03,0.00022136,2]
[316023595,1709327457463,-500.0,0.00022136,2]
[316023596,1709327457472,-10169.7,0.00022136,2]
[316023597,1709327457482,-2072.5,0.00022136,2]
[316023598,1709327457491,-500.0,0.00022136,2]
[316023599,1709327457501,-7070.22,0.00022136,2]
[316023600,1709327457510,-500.0,0.00022136,2]
[316023601,1709327457520,-529.11,0.00022136,2]
[316023602,1709327457529,-5861.18,0.00022136,2]
[316023603,1709327457538,-500.0,0.00022136,2]
[316023604,1709327457548,-537.06,0.00022136,2]
[316023605,1709327457557,-33577.13,0.00022136,2]
[316023606,1709327457568,-1668.82,0.00022136,2]
[316023607,1709327457577,-891.32,0.00022136,2]
[316023608,1709327457586,-8901.44,0.00022136,2]
[316023609,1709327457595,-500.0,0.00022136,2]
[316023610,1709327457604,-2011.98,0.00022136,2]
[316023611,1709327457614,-3361.6,0.00022136,2]
[316023612,1709327457624,-500.0,0.00022136,2]
[316023613,1709327457632,-967.73,0.00022136,2]
[316023614,1709327457642,-1064.03,0.00022136,2]
[316023615,1709327457651,-500.0,0.00022136,2]
[316023616,1709327457660,-500.0,0.00022136,2]
[316023617,1709327457670,-638.84,0.00022136,2]
[316023618,1709327457680,-2149.2,0.00022136,2]
[316023619,1709327457689,-284.90503242,0.00022136,2]
[316023620,1709327457698,-2108.84,0.00022136,2]
[316023621,1709327457712,-6084.97,0.00022136,2]
[316023622,1709327457721,-500.0,0.00022136,2]
[316023623,1709327457730,-19462.87460919,0.00022144,2]
[316023624,1709327457740,-12973.88925913,0.00022144,2]
[316023625,1709327457759,-4582.44293268,0.00022144,2]
[316023626,1709327457772,-1861.60364094,0.00022144,2]
[316023627,1709327457781,-10885.7847,0.00022146,2]
[316023628,1709327457792,-100000.0,0.00022146,2]
[316023629,1709327457802,-1754.36828258,0.00022153,2]
[316023630,1709327457811,-459.40538362,0.00022157,2]
[316023631,1709327457822,-357.11343089,0.00022191,2]
[316023632,1709327457831,-233.89192905,0.00022192,2]
[316023633,1709327457841,-459.40538362,0.00022213,2]
[316023634,1709327457850,-500.23520737,0.00022245,2]
[316023635,1709327457859,-418.01932537,0.00022245,2]
[316023636,1709327457869,-428.11568227,0.00022245,2]
[316023637,1709327457878,-378.43258953,0.00022245,2]
[316023638,1709327457888,-268.37164607,0.00022245,2]
[316023639,1709327457897,-150.0,0.00022245,2]
[316023640,1709327457907,-500.0,0.00022246,2]
[316023641,1709327457916,-500.0,0.00022246,2]
[316023642,1709327457925,-500.0,0.00022246,2]
[316023643,1709327457934,-300.0028202,0.00022246,2]
[316023644,1709327457944,-500.0,0.00022246,2]
[316023645,1709327457953,-500.0,0.00022246,2]
[316023646,1709327457962,-500.0,0.00022246,2]
[316023647,1709327457972,-500.0,0.00022246,2]
[316023648,1709327457981,-500.0,0.00022246,2]
[316023649,1709327457990,-500.0,0.00022246,2]
[316023650,1709327457999,-500.0,0.00022246,2]
[316023651,1709327458009,-500.0,0.00022246,2]
[316023652,1709327458018,-500.0,0.00022246,2]
[316023653,1709327458027,-500.0,0.00022246,2]
[316023654,1709327458037,-599.20792714,0.00022246,2]
[316023655,1709327458046,-572.56,0.00022246,2]
[316023656,1709327458056,-513.79980803,0.00022246,2]
[316023657,1709327458066,-511.49409812,0.00022246,2]
[316023658,1709327458075,-500.0,0.00022246,2]
[316023659,1709327458085,-500.0,0.00022246,2]
[316023660,1709327458095,-500.0,0.00022246,2]
[316023661,1709327458105,-500.0,0.00022246,2]
[316023662,1709327458114,-500.0,0.00022246,2]
[316023663,1709327458124,-500.0,0.00022246,2]
[316023664,1709327458133,-500.0,0.00022246,2]
[316023665,1709327458143,-500.0,0.00022246,2]
[316023666,1709327458153,-500.0,0.00022246,2]
[316023667,1709327458162,-500.0,0.00022246,2]
[316023668,1709327458173,-500.0,0.00022246,2]
[316023669,1709327458183,-500.0,0.00022246,2]
[316023670,1709327458192,-704.59,0.00022246,2]
[316023671,1709327458202,-500.0,0.00022246,2]
[316023672,1709327458211,-254.97397643,0.00022246,2]
[316023673,1709327458221,-500.0,0.00022246,2]
[316023674,1709327458230,-500.0,0.00022246,2]
[316023675,1709327458240,-500.0,0.00022246,2]
[316023676,1709327458250,-500.0,0.00022246,2]
[316023677,1709327458260,-500.0,0.00022246,2]
[316023678,1709327458269,-500.0,0.00022246,2]
[316023679,1709327458279,-500.0,0.00022246,2]
[316023680,1709327458288,-597.89,0.00022246,2]
[316023681,1709327458298,-500.0,0.00022246,2]
[316023682,1709327458307,-500.0,0.00022246,2]
[316023683,1709327458318,-500.0,0.00022246,2]
[316023684,1709327458327,-500.0,0.00022246,2]
[316023685,1709327458336,-500.0,0.00022246,2]
[316023686,1709327458345,-500.0,0.00022246,2]
[316023687,1709327458355,-500.0,0.00022246,2]
[316023688,1709327458364,-500.0,0.00022246,2]
[316023689,1709327458373,-500.0,0.00022246,2]
[316023690,1709327458383,-500.0,0.00022246,2]
[316023691,1709327458392,-500.0,0.00022246,2]
[316023692,1709327458402,-500.0,0.00022246,2]
[316023693,1709327458411,-500.0,0.00022246,2]
[316023694,1709327458420,-500.0,0.00022246,2]
[316023695,1709327458430,-500.0,0.00022246,2]
[316023696,1709327458439,-500.0,0.00022246,2]
[316023697,1709327458449,-563.82,0.00022246,2]
[316023698,1709327458459,-312.97,0.00022246,2]
[316023699,1709327458468,-500.0,0.00022246,2]
[316023700,1709327458479,-500.0,0.00022246,2]
[316023701,1709327458489,-552.9,0.00022246,2]
[316023702,1709327458499,-500.0,0.00022246,2]
[316023703,1709327458510,-500.0,0.00022246,2]
[316023704,1709327458520,-210.66771716,0.00022246,2]
[316023705,1709327458530,-500.0,0.00022246,2]
[316023706,1709327458539,-500.0,0.00022246,2]
[316023707,1709327458549,-500.0,0.00022246,2]
[316023708,1709327458559,-521.07,0.00022246,2]
[316023709,1709327458569,-500.0,0.00022246,2]
[316023710,1709327458579,-500.0,0.00022246,2]
[316023711,1709327458589,-500.0,0.00022246,2]
[316023712,1709327458599,-500.0,0.00022246,2]
[316023713,1709327458609,-500.0,0.00022246,2]
[316023714,1709327458618,-790.06,0.00022246,2]
[316023715,1709327458628,-554.47,0.00022246,2]
[316023716,1709327458638,-500.0,0.00022246,2]
[316023717,1709327458647,-500.0,0.00022246,2]
[316023718,1709327458657,-500.0,0.00022246,2]
[316023719,1709327458667,-500.0,0.00022246,2]
[316023720,1709327458677,-637.40167814,0.00022246,2]
[316023721,1709327458687,-242.76,0.00022246,2]
[316023722,1709327458697,-500.0,0.00022246,2]
[316023723,1709327458709,-620.34,0.00022246,2]
[316023724,1709327458719,-500.0,0.00022246,2]
[316023725,1709327458731,-500.0,0.00022246,2]
[316023726,1709327458745,-945.1,0.00022246,2]
[316023727,1709327458756,-518.38,0.00022246,2]
[316023728,1709327458766,-500.0,0.00022246,2]
[316023729,1709327458776,-500.0,0.00022246,2]
[316023730,1709327458787,-500.0,0.00022246,2]
[316023731,1709327458797,-500.0,0.00022246,2]
[316023732,1709327458808,-500.0,0.00022246,2]
[316023733,1709327458821,-208.48509889,0.00022246,2]
[316023734,1709327458830,-500.0,0.00022246,2]
[316023735,1709327458840,-423.68625629,0.00022246,2]
[316023736,1709327458849,-507.13,0.00022246,2]
[316023737,1709327458859,-585.61,0.00022246,2]
[316023738,1709327458869,-500.0,0.00022246,2]
[316023739,1709327458878,-500.0,0.00022246,2]
[316023740,1709327458887,-500.0,0.00022246,2]
[316023741,1709327458897,-500.0,0.00022246,2]
[316023742,1709327458906,-500.0,0.00022246,2]
[316023743,1709327458916,-500.0,0.00022246,2]
[316023744,1709327458925,-500.0,0.00022246,2]
[316023745,1709327458935,-655.68,0.00022246,2]
[316023746,1709327458946,-500.0,0.00022246,2]
[316023747,1709327458955,-500.0,0.00022246,2]
[316023748,1709327458965,-500.0,0.00022246,2]
[316023749,1709327458975,-500.0,0.00022246,2]
[316023750,1709327458985,-500.0,0.00022246,2]
[316023751,1709327458995,-928.54,0.00022246,2]
[316023752,1709327459005,-549.82,0.00022246,2]
[316023753,1709327459015,-500.0,0.00022246,2]
[316023754,1709327459025,-500.0,0.00022246,2]
[316023755,1709327459035,-500.0,0.00022246,2]
[316023756,1709327459045,-500.0,0.00022246,2]
[316023757,1709327459055,-500.0,0.00022246,2]
[316023758,1709327459066,-500.0,0.00022246,2]
[316023759,1709327459076,-500.0,0.00022246,2]
[316023760,1709327459087,-500.0,0.00022246,2]
[316023761,1709327459097,-537.75,0.00022246,2]
[316023762,1709327459107,-585.12,0.00022246,2]
[316023763,1709327459116,-740.69,0.00022246,2]
[316023764,1709327459126,-725.29,0.00022246,2]
[316023765,1709327459136,-624.1171858,0.00022246,2]
[316023766,1709327459146,-500.0,0.00022246,2]
[316023767,1709327459156,-500.0,0.00022246,2]
[316023768,1709327459166,-500.0,0.00022246,2]
[316023769,1709327459176,-500.0,0.00022246,2]
[316023770,1709327459186,-500.0,0.00022246,2]
[316023771,1709327459196,-500.0,0.00022246,2]
[316023772,1709327459206,-500.0,0.00022246,2]
[316023773,1709327459216,-500.0,0.00022246,2]
[316023774,1709327459227,-500.0,0.00022246,2]
[316023775,1709327459237,-311.94308851,0.00022246,2]
[316023776,1709327459247,-500.0,0.00022246,2]
[316023777,1709327459257,-500.0,0.00022246,2]
[316023778,1709327459266,-567.26,0.00022246,2]
[316023779,1709327459276,-500.0,0.00022246,2]
[316023780,1709327459286,-1074.01,0.00022246,2]
[316023781,1709327459297,-500.0,0.00022246,2]
[316023782,1709327459307,-724.85,0.00022246,2]
[316023783,1709327459319,-500.0,0.00022246,2]
[316023784,1709327459330,-500.0,0.00022246,2]
[316023785,1709327459340,-500.0,0.00022246,2]
[316023786,1709327459350,-500.0,0.00022246,2]
[316023787,1709327459360,-500.0,0.00022246,2]
[316023788,1709327459370,-500.0,0.00022246,2]
[316023789,1709327459380,-500.0,0.00022246,2]
[316023790,1709327459390,-500.0,0.00022246,2]
[316023791,1709327459401,-500.0,0.00022246,2]
[316023792,1709327459411,-500.0,0.00022246,2]
[316023793,1709327459421,-500.0,0.00022246,2]
[316023794,1709327459431,-500.0,0.00022246,2]
[316023795,1709327459442,-500.0,0.00022246,2]
[316023796,1709327459452,-500.0,0.00022246,2]
[316023797,1709327459462,-500.0,0.00022246,2]
[316023798,1709327459472,-661.14,0.00022246,2]
[316023799,1709327459482,-500.0,0.00022246,2]
[316023800,1709327459493,-677.52,0.00022246,2]
[316023801,1709327459503,-500.0,0.00022246,2]
[316023802,1709327459514,-500.0,0.00022246,2]
[316023803,1709327459524,-500.0,0.00022246,2]
[316023804,1709327459534,-500.0,0.00022246,2]
[316023805,1709327459545,-361.054456,0.00022246,2]
[316023806,1709327459554,-500.0,0.00022246,2]
[316023807,1709327459566,-500.0,0.00022246,2]
[316023808,1709327459576,-500.0,0.00022246,2]
[316023809,1709327459586,-150.0,0.00022246,2]
[316023810,1709327459596,-500.0,0.00022246,2]
[316023811,1709327459606,-500.0,0.00022246,2]
[316023812,1709327459617,-886.35,0.00022246,2]
[316023813,1709327459628,-500.0,0.00022246,2]
[316023814,1709327459638,-500.0,0.00022246,2]
[316023815,1709327459648,-621.47,0.00022246,2]
[316023816,1709327459658,-500.0,0.00022246,2]
[316023817,1709327459668,-500.0,0.00022246,2]
[316023818,1709327459679,-500.0,0.00022246,2]
[316023819,1709327459689,-500.0,0.00022246,2]
[316023820,1709327459699,-500.0,0.00022246,2]
[316023821,1709327459714,-500.0,0.00022246,2]
[316023822,1709327459724,-626.28,0.00022246,2]
[316023823,1709327459734,-814.38,0.00022246,2]
[316023824,1709327459744,-500.0,0.00022246,2]
[316023825,1709327459755,-500.0,0.00022246,2]
[316023826,1709327459765,-500.0,0.00022246,2]
[316023827,1709327459775,-500.0,0.00022246,2]
[316023828,1709327459785,-500.0,0.00022246,2]
[316023829,1709327459795,-500.0,0.00022246,2]
[316023830,1709327459805,-783.23,0.00022246,2]
[316023831,1709327459817,-500.0,0.00022246,2]
[316023832,1709327459826,-510.83803437,0.00022246,2]
[316023833,1709327459836,-500.0,0.00022246,2]
[316023834,1709327459846,-500.0,0.00022246,2]
[316023835,1709327459856,-610.08,0.00022246,2]
[316023836,1709327459866,-500.0,0.00022246,2]
[316023837,1709327459877,-554.609101,0.00022246,2]
[316023838,1709327459887,-592.18297996,0.00022246,2]
[316023839,1709327459897,-500.0,0.00022246,2]
[316023840,1709327459908,-500.0,0.00022246,2]
[316023841,1709327459918,-1032.68,0.00022246,2]
[316023842,1709327459928,-500.0,0.00022246,2]
[316023843,1709327459938,-500.0,0.00022246,2]
[316023844,1709327459948,-500.0,0.00022246,2]
[316023845,1709327459957,-500.0,0.00022246,2]
[316023846,1709327459967,-500.0,0.00022246,2]
[316023847,1709327459977,-979.52,0.00022246,2]
[316023848,1709327459987,-500.0,0.00022246,2]
[316023849,1709327459997,-500.0,0.00022246,2]
[316023850,1709327460006,-500.0,0.00022246,2]
[316023851,1709327460016,-595.94,0.00022246,2]
[316023852,1709327460025,-500.0,0.00022246,2]
[316023853,1709327460035,-500.0,0.00022246,2]
[316023854,1709327460045,-500.0,0.00022246,2]
[316023855,1709327460055,-500.0,0.00022246,2]
[316023856,1709327460067,-500.0,0.00022246,2]
[316023857,1709327460077,-500.0,0.00022246,2]
[316023858,1709327460087,-322.99258087,0.00022246,2]
[316023859,1709327460097,-404.15191228,0.00022246,2]
[316023860,1709327460107,-500.0,0.00022246,2]
[316023861,1709327460117,-500.0,0.00022246,2]
[316023862,1709327460127,-500.0,0.00022246,2]
[316023863,1709327460137,-500.0,0.00022246,2]
[316023864,1709327460147,-694.02,0.00022246,2]
[316023865,1709327460157,-500.0,0.00022246,2]
[316023866,1709327460167,-730.54,0.00022246,2]
[316023867,1709327460177,-500.0,0.00022246,2]
[316023868,1709327460188,-628.38071169,0.00022246,2]
[316023869,1709327460198,-500.0,0.00022246,2]
[316023870,1709327460208,-500.0,0.00022246,2]
[316023871,1709327460218,-500.0,0.00022246,2]
[316023872,1709327460229,-1631.05,0.00022246,2]
[316023873,1709327460239,-500.0,0.00022246,2]
[316023874,1709327460249,-500.0,0.00022246,2]
[316023875,1709327460259,-500.0,0.00022246,2]
[316023876,1709327460269,-579.96,0.00022246,2]
[316023877,1709327460279,-500.0,0.00022246,2]
[316023878,1709327460289,-623.07,0.00022246,2]
[316023879,1709327460300,-635.47,0.00022246,2]
[316023880,1709327460309,-500.0,0.00022246,2]
[316023881,1709327460322,-570.22,0.00022246,2]
[316023882,1709327460332,-1967.89,0.00022246,2]
[316023883,1709327460342,-790.48,0.00022246,2]
[316023884,1709327460353,-500.0,0.00022246,2]
[316023885,1709327460364,-500.0,0.00022246,2]
[316023886,1709327460374,-3840.77,0.00022246,2]
[316023887,1709327460385,-500.0,0.00022246,2]
[316023888,1709327460397,-500.0,0.00022246,2]
[316023889,1709327460408,-500.0,0.00022246,2]
[316023890,1709327460419,-1023.93,0.00022246,2]
[316023891,1709327460430,-709.22,0.00022246,2]
[316023892,1709327460442,-305.2,0.00022246,2]
[316023893,1709327460453,-500.0,0.00022246,2]
[316023894,1709327460465,-674.18,0.00022246,2]
[316023895,1709327460477,-802.02,0.00022246,2]
[316023896,1709327460488,-500.0,0.00022246,2]
[316023897,1709327460500,-758.5,0.00022246,2]
[316023898,1709327460512,-500.0,0.00022246,2]
[316023899,1709327460524,-2460.18,0.00022246,2]
[316023900,1709327460536,-500.0,0.00022246,2]
[316023901,1709327460547,-500.0,0.00022246,2]
[316023902,1709327460559,-500.0,0.00022246,2]
[316023903,1709327460575,-874.36,0.00022246,2]
[316023904,1709327460586,-2605.04606515,0.00022246,2]
[316023905,1709327461303,-2490.17393485,0.00022246,2]
[316023906,1709327461313,-619.7,0.00022246,2]
[316023907,1709327461324,-4543.29,0.00022246,2]
[316023908,1709327461333,-500.0,0.00022246,2]
[316023909,1709327461342,-500.0,0.00022246,2]
[316023910,1709327461351,-2791.17,0.00022246,2]
[316023911,1709327461360,-500.0,0.00022246,2]
[316023912,1709327461369,-500.0,0.00022246,2]
[316023913,1709327461378,-13075.41,0.00022246,2]
[316023914,1709327461388,-1086.33,0.00022246,2]
[316023915,1709327461399,-500.0,0.00022246,2]
[316023916,1709327461409,-697.61,0.00022246,2]
[316023917,1709327461418,-500.0,0.00022246,2]
[316023918,1709327461427,-2372.71,0.00022246,2]
[316023919,1709327461436,-531.57,0.00022246,2]
[316023920,1709327461446,-2238.29,0.00022246,2]
[316023921,1709327461455,-500.0,0.00022246,2]
[316023922,1709327461466,-3273.4,0.00022246,2]
[316023923,1709327461475,-500.0,0.00022246,2]
[316023924,1709327461485,-3863.53,0.00022246,2]
[316023925,1709327461495,-13361.28,0.00022246,2]
[316023926,1709327461505,-500.0,0.00022246,2]
[316023927,1709327461515,-1208.49,0.00022246,2]
[316023928,1709327461524,-500.0,0.00022246,2]
[316023929,1709327461534,-4739.16,0.00022246,2]
[316023930,1709327461543,-1157.09,0.00022246,2]
[316023931,1709327461553,-15192.43,0.00022246,2]
[316023932,1709327461562,-1083.08,0.00022246,2]
[316023933,1709327461574,-846.42,0.00022246,2]
[316023934,1709327461584,-500.0,0.00022246,2]
[316023935,1709327461593,-500.0,0.00022246,2]
[316023936,1709327461602,-500.0,0.00022246,2]
[316023937,1709327461612,-500.0,0.00022246,2]
[316023938,1709327461621,-836.05,0.00022246,2]
[316023939,1709327461630,-500.0,0.00022246,2]
[316023940,1709327461641,-500.0,0.00022246,2]
[316023941,1709327461650,-3538.29,0.00022246,2]
[316023942,1709327461659,-1380.52,0.00022246,2]
[316023943,1709327461669,-1788.19,0.00022246,2]
[316023944,1709327461678,-570.9,0.00022246,2]
[316023945,1709327461688,-3365.09,0.00022246,2]
[316023946,1709327461697,-1080.69,0.00022246,2]
[316023947,1709327461713,-1084.53,0.00022246,2]
[316023948,1709327461724,-500.0,0.00022246,2]
[316023949,1709327461734,-902.73,0.00022246,2]
[316023950,1709327461744,-1536.91,0.00022246,2]
[316023951,1709327461754,-7184.22,0.00022246,2]
[316023952,1709327461763,-712.93,0.00022246,2]
[316023953,1709327461772,-500.0,0.00022246,2]
[316023954,1709327461782,-2694.61,0.00022246,2]
[316023955,1709327461791,-500.0,0.00022246,2]
[316023956,1709327461800,-500.0,0.00022246,2]
[316023957,1709327461809,-527.47,0.00022246,2]
[316023958,1709327461821,-3160.24,0.00022246,2]
[316023959,1709327461830,-398.46479142,0.00022246,2]
[316023960,1709327461839,-500.0,0.00022246,2]
[316023961,1709327461848,-2910.19,0.00022246,2]
[316023962,1709327461858,-907.07,0.00022246,2]
[316023963,1709327461867,-1012.0,0.00022246,2]
[316023964,1709327461877,-1643.86,0.00022246,2]
[316023965,1709327461887,-500.0,0.00022246,2]
[316023966,1709327461897,-518.91,0.00022246,2]
[316023967,1709327461906,-2423.72,0.00022246,2]
[316023968,1709327461915,-500.0,0.00022246,2]
[316023969,1709327461924,-729.11,0.00022246,2]
[316023970,1709327461934,-500.0,0.00022246,2]
[316023971,1709327461943,-883.75,0.00022246,2]
[316023972,1709327461953,-509.83,0.00022246,2]
[316023973,1709327461962,-1378.45,0.00022246,2]
[316023974,1709327461972,-589.53,0.00022246,2]
[316023975,1709327461981,-500.0,0.00022246,2]
[316023976,1709327461991,-500.0,0.00022246,2]
[316023977,1709327462000,-500.0,0.00022246,2]
[316023978,1709327462009,-553.48,0.00022246,2]
[316023979,1709327462019,-500.0,0.00022246,2]
[316023980,1709327462028,-500.0,0.00022246,2]
[316023981,1709327462037,-735.21,0.00022246,2]
[316023982,1709327462046,-711.66,0.00022246,2]
[316023983,1709327462056,-500.0,0.00022246,2]
[316023984,1709327462065,-500.0,0.00022246,2]
[316023985,1709327462077,-697.75,0.00022246,2]
[316023986,1709327462087,-1628.97,0.00022246,2]
[316023987,1709327462096,-500.0,0.00022246,2]
[316023988,1709327462105,-746.85,0.00022246,2]
[316023989,1709327462115,-500.0,0.00022246,2]
[316023990,1709327462124,-500.0,0.00022246,2]
[316023991,1709327462133,-500.0,0.00022246,2]
[316023992,1709327462142,-703.92,0.00022246,2]
[316023993,1709327462151,-766.47,0.00022246,2]
[316023994,1709327462161,-583.31,0.00022246,2]
[316023995,1709327462170,-500.0,0.00022246,2]
[316023996,1709327462180,-500.0,0.00022246,2]
[316023997,1709327462190,-500.0,0.00022246,2]
[316023998,1709327462200,-932.22,0.00022246,2]
[316023999,1709327462210,-500.0,0.00022246,2]
[316024000,1709327462221,-894.62,0.00022246,2]
[316024001,1709327462232,-1880.26,0.00022246,2]
[316024002,1709327462242,-500.0,0.00022246,2]
[316024003,1709327462252,-1015.13,0.00022246,2]
[316024004,1709327462263,-729.79,0.00022246,2]
[316024005,1709327462273,-500.0,0.00022246,2]
[316024006,1709327462282,-1414.53,0.00022246,2]
[316024007,1709327462292,-500.0,0.00022246,2]
[316024008,1709327462303,-914.2,0.00022246,2]
[316024009,1709327462313,-570.43,0.00022246,2]
[316024010,1709327462328,-629.7,0.00022246,2]
[316024011,1709327462339,-500.0,0.00022246,2]
[316024012,1709327462349,-2928.05,0.00022246,2]
[316024013,1709327462360,-1028.0,0.00022246,2]
[316024014,1709327462372,-582.48,0.00022246,2]
[316024015,1709327462381,-500.0,0.00022246,2]
[316024016,1709327462391,-626.77,0.00022246,2]
[316024017,1709327462402,-500.0,0.00022246,2]
[316024018,1709327462413,-552.37,0.00022246,2]
[316024019,1709327462424,-1008.5,0.00022246,2]
[316024020,1709327462437,-635.13,0.00022246,2]
[316024021,1709327462448,-3808.77,0.00022246,2]
[316024022,1709327462458,-1798.0,0.00022246,2]
[316024023,1709327462469,-500.0,0.00022246,2]
[316024024,1709327462480,-698.46,0.00022246,2]
[316024025,1709327462489,-2046.85,0.00022246,2]
[316024026,1709327462501,-500.0,0.00022246,2]
[316024027,1709327462510,-748.33,0.00022246,2]
[316024028,1709327462520,-500.0,0.00022246,2]
[316024029,1709327462530,-500.0,0.00022246,2]
[316024030,1709327462541,-963.9,0.00022246,2]
[316024031,1709327462551,-817.49,0.00022246,2]
[316024032,1709327462563,-548.10498736,0.00022246,2]
[316024033,1709327462579,-1750.36,0.00022246,2]
[316024034,1709327462589,-500.0,0.00022246,2]
[316024035,1709327462600,-2795.7,0.00022246,2]
[316024036,1709327462610,-544.42,0.00022246,2]
[316024037,1709327462621,-500.0,0.00022246,2]
[316024038,1709327462631,-500.0,0.00022246,2]
[316024039,1709327462641,-1462.57,0.00022246,2]